fUSD/lending_fUSD_20240422
["ID","MTS","AMOUNT","RATE_DAILY","PERIOD"]
[323184949,1713791443045,-525.02,0.00013698,2]
[323184950,1713791443054,-501.55660046,0.00013698,2]
[323184951,1713791443064,-500.0,0.00013698,2]
[323184952,1713791443073,-561.36,0.00013698,2]
[323184953,1713791443083,-500.0,0.00013698,2]
[323184954,1713791443093,-500.0,0.00013698,2]
[323184955,1713791443102,-1469.95,0.00013698,2]
[323184956,1713791443111,-501.53841562,0.00013698,2]
[323184957,1713791443121,-500.0,0.00013698,2]
[323184958,1713791443131,-1672.16,0.00013698,2]
[323184959,1713791443140,-500.0,0.00013698,2]
[323184961,1713791443150,-500.0,0.00013698,2]
[323184962,1713791443160,-690.09,0.00013698,2]
[323184963,1713791443170,-563.52,0.00013698,2]
[323184964,1713791443179,-740.76,0.00013698,2]
[323184965,1713791443189,-500.0,0.00013698,2]
[323184966,1713791443199,-500.0,0.00013698,2]
[323184968,1713791443208,-500.0,0.00013698,2]
[323184970,1713791443218,-1438.78,0.00013698,2]
[323184972,1713791443229,-500.0,0.00013698,2]
[323184975,1713791443238,-500.0,0.00013698,2]
[323184977,1713791443247,-500.0,0.00013698,2]
[323184978,1713791443257,-500.0,0.00013698,2]
[323184979,1713791443266,-602.86,0.00013698,2]
[323184980,1713791443276,-500.0,0.00013698,2]
[323184981,1713791443285,-500.0,0.00013698,2]
[323184983,1713791443294,-500.0,0.00013698,2]
[323184985,1713791443303,-500.0,0.00013698,2]
[323184986,1713791443312,-1543.7,0.00013698,2]
[323184987,1713791443322,-525.72,0.00013698,2]
[323184988,1713791443331,-500.0,0.00013698,2]
[323184989,1713791443340,-500.0,0.00013698,2]
[323184990,1713791443350,-739.68,0.00013698,2]
[323184991,1713791443359,-628.89,0.00013698,2]
[323184992,1713791443368,-500.0,0.00013698,2]
[323184993,1713791443377,-556.77827164,0.00013698,2]
[323184994,1713791443387,-500.0,0.00013698,2]
[323184995,1713791443396,-500.0,0.00013698,2]
[323184996,1713791443405,-519.73,0.00013698,2]
[323184997,1713791443414,-601.22,0.00013698,2]
[323184998,1713791443424,-500.0,0.00013698,2]
[323184999,1713791443433,-1175.63,0.00013698,2]
[323185000,1713791443443,-500.0,0.00013698,2]
[323185001,1713791443452,-1685.96,0.00013698,2]
[323185002,1713791443461,-328.91071965,0.00013698,2]
[323185003,1713791443470,-500.0,0.00013698,2]
[323185004,1713791443480,-510.44,0.00013698,2]
[323185005,1713791443489,-500.0,0.00013698,2]
[323185006,1713791443498,-847.8,0.00013698,2]
[323185007,1713791443507,-1284.19,0.00013698,2]
[323185008,1713791443517,-500.0,0.00013698,2]
[323185009,1713791443526,-1028.09,0.00013698,2]
[323185010,1713791443535,-500.0,0.00013698,2]
[323185011,1713791443544,-499.38670403,0.00013698,2]
[323185012,1713791443553,-500.0,0.00013698,2]
[323185013,1713791443563,-500.0,0.00013698,2]
[323185014,1713791443572,-1395.16,0.00013698,2]
[323185015,1713791443582,-500.0,0.00013698,2]
[323185016,1713791443591,-520.23,0.00013698,2]
[323185017,1713791443601,-500.0,0.00013698,2]
[323185018,1713791443610,-2118.01,0.00013698,2]
[323185019,1713791443619,-500.0,0.00013698,2]
[323185020,1713791443628,-713.23,0.00013698,2]
[323185021,1713791443637,-548.26,0.00013698,2]
[323185022,1713791443646,-500.0,0.00013698,2]
[323185023,1713791443655,-500.0,0.00013698,2]
[323185024,1713791443664,-500.0,0.00013698,2]
[323185025,1713791443674,-595.44,0.00013698,2]
[323185026,1713791443684,-1337.55,0.00013698,2]
[323185027,1713791443693,-546.06,0.00013698,2]
[323185028,1713791443703,-2480.57,0.00013698,2]
[323185029,1713791443714,-500.0,0.00013698,2]
[323185030,1713791443723,-1205.95,0.00013698,2]
[323185031,1713791443735,-520.54,0.00013698,2]
[323185032,1713791443744,-1115.09,0.00013698,2]
[323185033,1713791443754,-500.0,0.00013698,2]
[323185034,1713791443764,-1170.28,0.00013698,2]
[323185035,1713791443773,-502.33028563,0.00013698,2]
[323185036,1713791443783,-704.72,0.00013698,2]
[323185037,1713791443795,-500.0,0.00013698,2]
[323185038,1713791443806,-500.0,0.00013698,2]
[323185039,1713791443816,-570.12,0.00013698,2]
[323185040,1713791443825,-534.67,0.00013698,2]
[323185042,1713791443835,-672.49,0.00013698,2]
[323185043,1713791443844,-500.0,0.00013698,2]
[323185044,1713791443854,-500.0,0.00013698,2]
[323185045,1713791443863,-1532.25,0.00013698,2]
[323185046,1713791443873,-500.0,0.00013698,2]
[323185047,1713791443882,-500.0,0.00013698,2]
[323185048,1713791443891,-685.71,0.00013698,2]
[323185049,1713791443900,-500.0,0.00013698,2]
[323185050,1713791443910,-960.3,0.00013698,2]
[323185051,1713791443919,-500.0,0.00013698,2]
[323185052,1713791443928,-500.0,0.00013698,2]
[323185053,1713791443938,-589.94,0.00013698,2]
[323185054,1713791443947,-500.0,0.00013698,2]
[323185055,1713791444246,-500.0,0.00013698,2]
[323185056,1713791444255,-1129.24,0.00013698,2]
[323185057,1713791444265,-715.83,0.00013698,2]
[323185058,1713791444274,-500.0,0.00013698,2]
[323185059,1713791444284,-500.0,0.00013698,2]
[323185060,1713791444293,-500.0,0.00013698,2]
[323185061,1713791444303,-500.0,0.00013698,2]
[323185062,1713791444312,-500.0,0.00013698,2]
[323185063,1713791444322,-516.52,0.00013698,2]
[323185064,1713791444331,-500.0,0.00013698,2]
[323185065,1713791444341,-500.0,0.00013698,2]
[323185066,1713791444350,-512.05,0.00013698,2]
[323185067,1713791444359,-500.0,0.00013698,2]
[323185068,1713791444368,-678.42,0.00013698,2]
[323185069,1713791444376,-2278.35,0.00013698,2]
[323185070,1713791444386,-844.15,0.00013698,2]
[323185071,1713791444395,-500.0,0.00013698,2]
[323185072,1713791444403,-1046.31,0.00013698,2]
[323185073,1713791444412,-778.1,0.00013698,2]
[323185074,1713791444421,-500.0,0.00013698,2]
[323185075,1713791444430,-615.99,0.00013698,2]
[323185076,1713791444439,-500.0,0.00013698,2]
[323185077,1713791444448,-500.0,0.00013698,2]
[323185078,1713791444457,-500.0,0.00013698,2]
[323185079,1713791444465,-500.0,0.00013698,2]
[323185080,1713791444474,-500.0,0.00013698,2]
[323185081,1713791444485,-500.0,0.00013698,2]
[323185082,1713791444494,-1129.82,0.00013698,2]
[323185083,1713791444502,-500.0,0.00013698,2]
[323185084,1713791444512,-1989.23,0.00013698,2]
[323185085,1713791444521,-500.0,0.00013698,2]
[323185086,1713791444530,-500.0,0.00013698,2]
[323185087,1713791444540,-539.24,0.00013698,2]
[323185088,1713791444549,-1608.53,0.00013698,2]
[323185089,1713791444559,-500.0,0.00013698,2]
[323185090,1713791444568,-500.0,0.00013698,2]
[323185091,1713791444577,-500.0,0.00013698,2]
[323185092,1713791444586,-500.0,0.00013698,2]
[323185093,1713791444595,-562.71,0.00013698,2]
[323185094,1713791444604,-620.24,0.00013698,2]
[323185095,1713791444613,-1969.25,0.00013698,2]
[323185096,1713791444623,-513.57,0.00013698,2]
[323185097,1713791444632,-784.9,0.00013698,2]
[323185098,1713791444641,-583.5,0.00013698,2]
[323185099,1713791444650,-500.0,0.00013698,2]
[323185100,1713791444660,-500.0,0.00013698,2]
[323185101,1713791444669,-500.0,0.00013698,2]
[323185102,1713791444678,-500.0,0.00013698,2]
[323185103,1713791444687,-641.22,0.00013698,2]
[323185104,1713791444697,-500.0,0.00013698,2]
[323185105,1713791444706,-500.0,0.00013698,2]
[323185106,1713791444719,-500.0,0.00013698,2]
[323185107,1713791444730,-500.0,0.00013698,2]
[323185108,1713791444740,-205.55336277,0.00013698,2]
[323185115,1713791446444,-150.0,0.00013669,2]
[323185116,1713791446454,-168.724999,0.00013698,2]
[323185117,1713791446464,-500.0,0.00013698,2]
[323185118,1713791446473,-721.12,0.00013698,2]
[323185119,1713791446486,-1639.34,0.00013698,2]
[323185120,1713791446496,-500.0,0.00013698,2]
[323185121,1713791446506,-625.15,0.00013698,2]
[323185122,1713791446515,-500.0,0.00013698,2]
[323185123,1713791446525,-502.56,0.00013698,2]
[323185124,1713791446535,-1356.26,0.00013698,2]
[323185125,1713791446545,-500.0,0.00013698,2]
[323185126,1713791446554,-500.0,0.00013698,2]
[323185127,1713791446564,-393.37843852,0.00013698,2]
[323185128,1713791446574,-564.4,0.00013698,2]
[323185129,1713791446583,-369.11,0.00013698,2]
[323185130,1713791446593,-537.59,0.00013698,2]
[323185131,1713791446603,-500.0,0.00013698,2]
[323185132,1713791446613,-500.0,0.00013698,2]
[323185133,1713791446622,-500.0,0.00013698,2]
[323185134,1713791446632,-500.0,0.00013698,2]
[323185135,1713791446642,-500.0,0.00013698,2]
[323185136,1713791446651,-849.01,0.00013698,2]
[323185137,1713791446660,-1000.0,0.00013698,2]
[323185138,1713791446669,-514.37,0.00013698,2]
[323185139,1713791446678,-621.96,0.00013698,2]
[323185140,1713791446688,-500.0,0.00013698,2]
[323185141,1713791446697,-685.03,0.00013698,2]
[323185142,1713791446707,-1255.31,0.00013698,2]
[323185143,1713791446718,-593.47,0.00013698,2]
[323185144,1713791446727,-500.0,0.00013698,2]
[323185145,1713791446738,-900.49,0.00013698,2]
[323185146,1713791446748,-1046.58,0.00013698,2]
[323185147,1713791446759,-524.66,0.00013698,2]
[323185148,1713791446769,-798.88,0.00013698,2]
[323185149,1713791446778,-1493.39,0.00013698,2]
[323185150,1713791446788,-500.0,0.00013698,2]
[323185151,1713791446799,-1216.51783106,0.00013698,2]
[323185152,1713791447990,-841.02086191,0.00013698,2]
[323185153,1713791448009,-395.826,0.00013698,2]
[323185154,1713791448021,-361.64571117,0.00013698,2]
[323185159,1713791527792,-227.36,0.00012714,2]
[323185160,1713791527816,-22.64,0.00012889,2]
[323185161,1713791579849,685.03,0.00010789,2]
[323185162,1713791879477,500.0,0.00010789,2]
[323185163,1713791894749,500.0,0.00010789,2]
[323185164,1713791918904,500.0,0.00010789,2]
[323185165,1713791938753,323.39168359,0.00010789,2]
[323185166,1713792097226,5320.0,0.00022,31]
[323185167,1713792097727,663.78,0.00010752,2]
[323185168,1713792375579,-157.85426855,0.00012575,2]
[323185169,1713792375599,-250.0,0.00012664,2]
[323185170,1713792375620,-9592.14573145,0.00012675,2]
[323185171,1713792378310,-10000.0,0.00012675,2]
[323185172,1713792380026,-10000.0,0.00012675,2]
[323185173,1713792381628,-10000.0,0.00012675,2]
[323185174,1713792383166,-399.1405205,0.00012675,2]
[323185175,1713792383187,-659.0,0.00012675,2]
[323185176,1713792383540,-7755.6,0.00012676,2]
[323185177,1713792383563,-227.36,0.00012676,2]
[323185178,1713792383583,-859.5,0.00012676,2]
[323185179,1713792383603,-99.3994795,0.0001268,2]
[323185180,1713792551837,630.59,0.00010361,2]
[323185193,1713792631586,-250.0,0.00012248,2]
[323185194,1713792631596,-181.5189,0.00012575,2]
[323185195,1713792631606,-630.59,0.00012625,2]
[323185196,1713792631616,-199.52,0.00012668,2]
[323185197,1713792631625,-1000.0,0.00012674,2]
[323185198,1713792631634,-156.62,0.00012758,2]
[323185199,1713792631644,-1515.15974651,0.00012893,2]
[323185200,1713792631653,-1422.60175337,0.00013,2]
[323185201,1713792631680,-327.39824663,0.00013,2]
[323185202,1713792631692,-729.38484967,0.00013016,2]
[323185203,1713792631703,-975.9428,0.00013016,2]
[323185204,1713792631715,-3294.67235033,0.00013016,2]
[323185205,1713792631724,-207.12062846,0.00013025,2]
[323185206,1713792631735,-893.97357438,0.00013025,2]
[323185207,1713792631855,-3898.90579716,0.00013025,2]
[323185208,1713792631865,-1868.25724568,0.00013075,2]
[323185209,1713792631877,-3131.74275432,0.00013075,2]
[323185210,1713792631887,-604.3,0.00013084,2]
[323185212,1713792631896,-1821.83,0.00013084,2]
[323185214,1713792631906,-634.02724568,0.000131,2]
[323185216,1713792631917,-500.71354731,0.000131,2]
[323185237,1713792637532,-3865.25920701,0.000131,2]
[323185238,1713792637541,-170.42909299,0.00013112,2]
[323185239,1713792637587,-4829.57090701,0.00013112,2]
[323185240,1713792637596,-5000.0,0.00013113,2]
[323185241,1713792637605,-1097.98528911,0.00013124,2]
[323185242,1713792637617,-3902.01471089,0.00013124,2]
[323185243,1713792637626,-1114.27507666,0.00013155,2]
[323185244,1713792637695,-385.72492334,0.00013155,2]
[323185245,1713792637704,-470.14364877,0.00013163,2]
[323185246,1713792637760,-4529.85635123,0.00013163,2]
[323185247,1713792637769,-10000.0,0.00013175,2]
[323185248,1713792637779,-25000.0,0.000132,2]
[323185249,1713792637788,-5000.0,0.00013209,2]
[323185250,1713792637797,-21701.14364878,0.00013212,2]
[323185253,1713792639533,-3298.85635122,0.00013212,2]
[323185254,1713792639543,-829.78351761,0.00013224,2]
[323185255,1713792639554,-3933.36463944,0.00013224,2]
[323185256,1713792639565,-1078.50391284,0.00013224,2]
[323185257,1713792639596,-4158.34793011,0.00013224,2]
[323185258,1713792639606,-1321.32,0.00013225,2]
[323185259,1713792639615,-1554.54939531,0.00013233,2]
[323185260,1713792639626,-619.0,0.00013233,2]
[323185261,1713792639669,-2819.22331219,0.00013233,2]
[323185262,1713792641061,-7.2272925,0.00013233,2]
[323185263,1713792641072,-850.46505097,0.00013243,2]
[323185264,1713792641091,-4149.53494903,0.00013243,2]
[323185265,1713792641101,-501.81893414,0.00013262,2]
[323185266,1713792641140,-1487.31897559,0.00013262,2]
[323185275,1713792642627,-630.47,0.00013262,2]
[323185276,1713792642735,-282.0659,0.00013262,2]
[323185277,1713792642800,-62.50619027,0.00013262,2]
[323185278,1713792642809,-1126.3525642,0.00013273,2]
[323185279,1713792645598,-644.58765686,0.00013273,2]
[323185280,1713792645655,-2858.53977894,0.00013273,2]
[323185281,1713792645665,-5000.0,0.00013285,2]
[323185282,1713792645674,-3041.08,0.00013295,2]
[323185283,1713792645684,-10000.0,0.00013296,2]
[323185284,1713792645696,-1537.96,0.00013297,2]
[323185285,1713792645705,-5000.0,0.00013319,2]
[323185286,1713792645715,-2403.05,0.00013324,2]
[323185287,1713792645724,-831.7759146,0.00013336,2]
[323185293,1713792819498,-523.93217542,0.00012061,2]
[323185294,1713792819518,-3080.48716405,0.00012062,2]
[323185295,1713792819538,-1994.63391406,0.00012063,2]
[323185296,1713792819559,-781.26841583,0.00012063,2]
[323185297,1713792819578,-1500.0,0.00012064,2]
[323185298,1713792819600,-2119.67833064,0.00012163,2]
[323185299,1713792820796,-523.93217542,0.00012061,2]
[323185300,1713792820816,-206.75433877,0.00012061,2]
[323185301,1713792820837,-9269.31348581,0.00012163,2]
[323185305,1713792869189,-3600.4460465,0.00012162,2]
[323185306,1713792869213,-1728.92434814,0.00012163,2]
[323185307,1713792869235,-1500.0,0.00012164,2]
[323185308,1713792869257,-514.02,0.00012376,2]
[323185309,1713792869278,-150.0,0.00012658,2]
[323185310,1713792869299,-150.0,0.00012658,2]
[323185311,1713792869322,-167.36,0.0001266,2]
[323185312,1713792869345,-167.36,0.00012695,2]
[323185313,1713792869370,-167.36,0.00012729,2]
[323185314,1713792869392,-167.36,0.00012764,2]
[323185315,1713792869414,-167.36,0.00012799,2]
[323185316,1713792869435,-167.36,0.00012833,2]
[323185317,1713792869456,-167.36,0.00012868,2]
[323185318,1713792869480,-150.99,0.00012868,2]
[323185319,1713792869501,-663.68,0.00012868,2]
[323185320,1713792869521,-1500.0,0.00012888,2]
[323185321,1713792869541,-167.36,0.00012903,2]
[323185322,1713792869562,-8703.05960536,0.00012937,2]
[323185325,1713793059127,1500.0,0.00011187,2]
[323185350,1713793664651,650.4,9.66e-05,2]
[323185366,1713793831665,-250.0,0.0001158,2]
[323185367,1713793831675,-264.33101265,0.00011619,2]
[323185368,1713793831687,-268.08753569,0.00011619,2]
[323185369,1713793831697,-779.77,0.0001162,2]
[323185370,1713793831707,-8929.32169711,0.00011633,2]
[323185371,1713793831726,-346.39830289,0.00011633,2]
[323185372,1713793831736,-1000.0,0.00011722,2]
[323185373,1713793831745,-515.22011756,0.00011723,2]
[323185374,1713793831755,-181.88,0.00011724,2]
[323185375,1713793831764,-3012.16,0.00011727,2]
[323185376,1713793831773,-150.0,0.00011764,2]
[323185377,1713793831782,-573.0,0.00011767,2]
[323185378,1713793831792,-499.99,0.00011767,2]
[323185379,1713793831801,-154.48,0.00011902,2]
[323185380,1713793831810,-232.7680879,0.00011924,2]
[323185381,1713793831822,-417.6319121,0.00011924,2]
[323185382,1713793831831,-154.48,0.00011954,2]
[323185383,1713793831840,-86.3684696,0.00012005,2]
[323185384,1713793831852,-68.1115304,0.00012005,2]
[323185385,1713793831861,-154.48,0.00012057,2]
[323185386,1713793831870,-154.48,0.00012109,2]
[323185387,1713793831879,-150.0,0.0001211,2]
[323185388,1713793831890,-220.64,0.00012129,2]
[323185389,1713793831899,-150.0,0.00012134,2]
[323185390,1713793831908,-154.48,0.0001216,2]
[323185391,1713793831918,-154.48,0.00012212,2]
[323185392,1713793831927,-127.57331247,0.00012225,2]
[323185393,1713793831938,-45.30668753,0.00012225,2]
[323185394,1713793831948,-157.85426854,0.00012262,2]
[323185395,1713793831957,-154.48,0.00012264,2]
[323185396,1713793831967,-154.48,0.00012315,2]
[323185397,1713793831976,-117.14353876,0.00012362,2]
[323185398,1713793832003,-55.99646124,0.00012362,2]
[323185399,1713793832012,-154.48,0.00012367,2]
[323185400,1713793832022,-154.48,0.00012419,2]
[323185401,1713793832031,-154.48,0.0001247,2]
[323185402,1713793832041,-154.48,0.00012522,2]
[323185403,1713793832051,-150.0,0.0001262,2]
[323185404,1713793832060,-1500.0,0.00012931,2]
[323185405,1713793832070,-4302.50188618,0.00012937,2]
[323185406,1713793832081,-1033.7,0.00012937,2]
[323185407,1713793832094,-495.48279711,0.00012937,2]
[323185408,1713793832124,-261.33101004,0.00012937,2]
[323185409,1713793832136,-1251.45066679,0.00012937,2]
[323185410,1713793832148,-508.90546937,0.00012937,2]
[323185411,1713793832183,-614.52473525,0.00012937,2]
[323185412,1713793832194,-3702.15153,0.00012937,2]
[323185413,1713793832207,-530.38881895,0.00012937,2]
[323185414,1713793832219,-34791.23123082,0.00012937,2]
[323185415,1713793832229,-210.0,0.0001294,2]
[323185416,1713793832240,-1500.0,0.0001298,2]
[323185417,1713793832249,-1750.0,0.00013,2]
[323185418,1713793832259,-2500.0,0.00013026,2]
[323185419,1713793832268,-11739.78608565,0.000131,2]
[323185420,1713793832277,-1500.0,0.00013147,2]
[323185421,1713793832286,-418.94,0.00013151,2]
[323185422,1713793832296,-2500.0,0.00013152,2]
[323185423,1713793832305,-6868.58573404,0.00013152,2]
[323185434,1713793837717,-3212.13366596,0.00013152,2]
[323185435,1713793837727,-7.58668404,0.00013177,2]
[323185436,1713793837740,-790.78038868,0.00013177,2]
[323185437,1713793837753,-701.63292728,0.00013177,2]
[323185438,1713793837763,-1000.0,0.00013188,2]
[323185439,1713793837772,-27.92490924,0.0001319,2]
[323185440,1713793837791,-153.95509076,0.0001319,2]
[323185441,1713793837800,-631.96955693,0.000132,2]
[323185442,1713793837812,-76.77017307,0.000132,2]
[323185443,1713793838176,-592.65690146,0.00013205,2]
[323185444,1713793838215,-4407.34309854,0.00013205,2]
[323185445,1713793838226,-292.70269735,0.00013213,2]
[323185446,1713793838236,-419.1773,0.00013249,2]
[323185447,1713793838246,-169.14579115,0.0001325,2]
[323185448,1713793838257,-1241.11650794,0.0001325,2]
[323185449,1713793838269,-363.27487378,0.0001325,2]
[323185450,1713793838278,-14597.250567,0.00013251,2]
[323185451,1713793838289,-11040.28683233,0.00013251,2]
[323185452,1713793838299,-2100.63691927,0.00013252,2]
[323185453,1713793838310,-444.11719502,0.00013252,2]
[323185454,1713793838323,-13005.6300362,0.00013252,2]
[323185455,1713793838335,-7247.88125866,0.00013252,2]
[323185456,1713793838346,-2608.39956471,0.00013252,2]
[323185457,1713793838389,-8997.85481129,0.00013252,2]
[323185458,1713793838465,-1785.02812786,0.00013252,2]
[323185459,1713793838492,-655.82000289,0.00013252,2]
[323185460,1713793838504,-1365.72124374,0.00013252,2]
[323185461,1713793838547,-1654.53650654,0.00013252,2]
[323185462,1713793839998,-64984.16443382,0.00013252,2]
[323185463,1713793840008,-301.49611001,0.000133,2]
[323185464,1713793840018,-17579.304287,0.000133,2]
[323185465,1713793840118,-3084.0199618,0.000133,2]
[323185466,1713793840130,-2068.9992,0.000133,2]
[323185526,1713793845706,-500.0,0.00012543,2]
[323185527,1713793845715,-2348.65876967,0.000133,2]
[323185528,1713793845758,-3309.69618,0.000133,2]
[323185529,1713793845949,-2705.58424669,0.000133,2]
[323185530,1713793845962,-27024.17099468,0.000133,2]
[323185531,1713793845973,-1313.87865291,0.000133,2]
[323185532,1713793845993,-14715.41922964,0.000133,2]
[323185533,1713793846005,-591.88368,0.000133,2]
[323185534,1713793846049,-1673.69561346,0.000133,2]
[323185535,1713793846182,-495.34474352,0.000133,2]
[323185536,1713793867397,1268.57132451,0.00013152,10]
[323185537,1713793884889,1268.57132451,0.00013152,10]
[323185538,1713793904918,1268.57132451,0.00013152,10]
[323185539,1713793911926,150.0,0.00015,15]
[323185540,1713793917338,13033.38861575,0.00015,10]
[323185545,1713794138450,1500.0,0.00011153,2]
[323185546,1713794177922,1268.57132451,0.00011153,10]
[323185547,1713794178188,1933.13787153,0.00011153,2]
[323185548,1713794192368,1268.57132451,0.00011153,10]
[323185549,1713794196197,1288.75858102,0.00011153,2]
[323185550,1713794198207,403.86691055,0.00011153,2]
[323185551,1713794203129,608.76,9.744e-05,2]
[323185552,1713794203220,179.55725159,0.00011153,2]
[323185553,1713794204095,185.02697293,0.00011153,2]
[323185554,1713794209926,1268.57132451,0.00011153,10]
[323185555,1713794211706,500.0,0.000224,30]
[323185556,1713794220169,1073.96548418,0.00011153,2]
[323185557,1713794227934,1268.57132451,0.00011153,10]
[323185558,1713794292730,1073.96548418,0.00011153,2]
[323185559,1713794304444,1268.57132451,0.00011153,10]
[323185560,1713794308741,559.53601726,0.00011153,2]
[323185561,1713794316336,500.0,0.00011,2]
[323185562,1713794320443,654.98212337,0.00011153,10]
[323185563,1713794616712,559.53601726,0.00011153,2]
[323185564,1713794632737,559.53601726,0.00011153,2]
[323185565,1713794647063,559.53601726,0.00011153,2]
[323185566,1713794663150,559.53601726,0.00011153,2]
[323185567,1713794680916,559.53601726,0.00011153,2]
[323185568,1713794698714,559.53601726,0.00011153,2]
[323185569,1713794714729,559.53601726,0.00011153,2]
[323185570,1713794737071,559.53601726,0.00011153,2]
[323185571,1713794756714,334.00326559,0.00011153,2]
[323185572,1713794811458,266.64465607,0.00011153,2]
[323185576,1713794837756,1287.7658671,0.00027121,120]
[323185580,1713794892072,162.28872401,0.0001115,2]
[323185619,1713795031803,-155.0,0.00011238,2]
[323185621,1713795031813,-434.1351042,0.00011239,2]
[323185625,1713795031825,-89.79707122,0.00011239,2]
[323185627,1713795031836,-155.0,0.0001124,2]
[323185629,1713795031845,-216.02707233,0.00011241,2]
[323185631,1713795031855,-86.61313813,0.00011242,2]
[323185633,1713795031874,-151.58693495,0.00011242,2]
[323185635,1713795031884,-230.1349628,0.00011242,2]
[323185641,1713795031927,-450.0,0.00011242,2]
[323185643,1713795031939,-2400.35220125,0.00011242,2]
[323185645,1713795031949,-300.0,0.00011245,2]
[323185647,1713795031959,-235.49862307,0.00011249,2]
[323185650,1713795031971,-1047.92218915,0.00011249,2]
[323185652,1713795031981,-150.0,0.000113,2]
[323185654,1713795031990,-2312.22963708,0.000113,2]
[323185657,1713795032014,-408.75323981,0.000113,2]
[323185659,1713795032025,-1589.97712311,0.000113,2]
[323185660,1713795032034,-122.59413486,0.000113,2]
[323185661,1713795032045,-1217.54586514,0.000113,2]
[323185662,1713795032054,-172.88,0.00011336,2]
[323185663,1713795032063,-3038.94,0.00011399,2]
[323185664,1713795032074,-150.99,0.00011399,2]
[323185665,1713795032082,-250.0,0.00011459,2]
[323185666,1713795032091,-622.86,0.00011459,2]
[323185667,1713795032100,-784.55,0.00011494,2]
[323185668,1713795032109,-858.97372281,0.00011511,2]
[323185669,1713795032120,-141.02627719,0.00011511,2]
[323185670,1713795032130,-220.93754006,0.00011511,2]
[323185671,1713795032141,-279.05245994,0.00011511,2]
[323185672,1713795032150,-156.53,0.0001152,2]
[323185673,1713795032160,-199.52,0.00011581,2]
[323185674,1713795032169,-999.99,0.00011582,2]
[323185675,1713795032179,-156.53,0.0001162,2]
[323185676,1713795032190,-156.53,0.0001172,2]
[323185677,1713795032199,-156.53,0.0001182,2]
[323185679,1713795032209,-156.53,0.0001192,2]
[323185680,1713795032218,-608.76,0.00012008,2]
[323185681,1713795032227,-499.99,0.00012008,2]
[323185682,1713795032236,-156.53,0.0001202,2]
[323185683,1713795032246,-162.28872399,0.00012025,2]
[323185684,1713795032255,-156.53,0.0001212,2]
[323185685,1713795032265,-264.14,0.00012154,2]
[323185686,1713795032274,-781.26841583,0.00012311,2]
[323185687,1713795032283,-178.89,0.00012313,2]
[323185688,1713795032294,-265.44673358,0.00012387,2]
[323185689,1713795032303,-178.61,0.00012548,2]
[323185690,1713795032314,-500.0,0.000129,2]
[323185691,1713795032325,-343.78384376,0.000129,2]
[323185692,1713795032334,-343.78384376,0.000129,2]
[323185693,1713795032343,-343.78384376,0.000129,2]
[323185694,1713795032354,-343.78384376,0.000129,2]
[323185695,1713795032363,-162.28872399,0.000129,2]
[323185696,1713795032373,-195.70620599,0.000129,2]
[323185697,1713795032384,-1444.77798012,0.00012947,2]
[323185698,1713795032394,-1000.0,0.0001295,2]
[323185699,1713795032404,-1267.55277145,0.00012986,2]
[323185700,1713795032414,-1004.19508164,0.00012988,2]
[323185701,1713795032423,-475.61715271,0.0001299,2]
[323185702,1713795032433,-155.0,0.00012998,2]
[323185703,1713795032444,-489.24865107,0.00012998,2]
[323185704,1713795032453,-155.23385634,0.00012998,2]